fUSD/lending_fUSD_20250622
["ID","MTS","AMOUNT","RATE_DAILY","PERIOD"]
[367000546,1750611042034,-591.51,0.00036649,30]
[367000547,1750611042043,-591.51,0.00036649,30]
[367000548,1750611042053,-591.51,0.00036649,30]
[367000549,1750611042062,-591.51,0.00036649,30]
[367000550,1750611042072,-200.0,0.00036659,10]
[367000551,1750611042082,-1101.55384,0.00036688,30]
[367000552,1750611042091,-283.51767351,0.00036691,15]
[367000553,1750611042101,-513.515921,0.00036691,120]
[367000554,1750611042111,-6114.18,0.000367,12]
[367000555,1750611042120,-300.0,0.000368,13]
[367000556,1750611042129,-1341.667814,0.00036825,16]
[367000557,1750611042139,-4222.50454798,0.00036861,2]
[367000558,1750611042148,-2660.84885605,0.00036866,35]
[367000559,1750611042158,-182.42876944,0.0003688,9]
[367000560,1750611042167,-1101.55384,0.00036888,30]
[367000561,1750611042177,-3671.8461,0.00036888,7]
[367000562,1750611042187,-700.0,0.000369,13]
[367000563,1750611042196,-1500.0,0.000369,24]
[367000564,1750611042206,-591.51,0.00036923,30]
[367000565,1750611042215,-591.51,0.00036923,30]
[367000566,1750611042224,-710.06,0.00036954,2]
[367000567,1750611042235,-163.6,0.00036954,2]
[367000568,1750611042244,-150.0,0.00036954,2]
[367000569,1750611042254,-188.62,0.00036954,2]
[367000570,1750611042263,-300.0,0.00036954,2]
[367000571,1750611042272,-163.6,0.00036954,2]
[367000572,1750611042283,-163.6,0.00036954,2]
[367000573,1750611042293,-500.0,0.00036958,7]
[367000574,1750611042302,-150.0,0.00036962,2]
[367000575,1750611042311,-151.0,0.00036965,7]
[367000576,1750611042320,-151.0,0.00036965,7]
[367000577,1750611042330,-151.0,0.00036965,7]
[367000578,1750611042339,-151.0,0.00036965,7]
[367000579,1750611042348,-151.0,0.00036965,7]
[367000580,1750611042358,-222684.710946,0.0003697,3]
[367000581,1750611042367,-150.5,0.0003698,120]
[367000582,1750611042377,-452606.799036,0.0003698,3]
[367000583,1750611042387,-272170.202267,0.0003698,3]
[367000584,1750611042396,-1700.0,0.00036985,60]
[367000585,1750611042406,-600.0,0.00036985,60]
[367000586,1750611042419,-500.0,0.00036985,60]
[367000587,1750611042428,-1000000.0,0.0003699,120]
[367000588,1750611042437,-192.08,0.0003699,120]
[367000589,1750611042446,-150.5,0.0003699,120]
[367000590,1750611042457,-151.0,0.0003699,7]
[367000591,1750611042467,-209.0,0.00037,30]
[367000592,1750611042476,-1000.0,0.00037,7]
[367000593,1750611042488,-4449.0,0.00037,117]
[367000594,1750611042497,-500.0,0.00037077,7]
[367000595,1750611042507,-1101.55384,0.00037088,30]
[367000596,1750611042516,-150.0,0.00037098,2]
[367000597,1750611042525,-154.52,0.000371,31]
[367000598,1750611042535,-154.52,0.000371,31]
[367000599,1750611042545,-538.67656204,0.00037103,7]
[367000600,1750611042554,-200.0,0.0003716,10]
[367000601,1750611042563,-304.57379915,0.0003718,7]
[367000602,1750611042573,-1000.0,0.00037182,2]
[367000603,1750611042583,-1000.0,0.00037188,7]
[367000604,1750611042593,-591.51,0.00037197,30]
[367000605,1750611042602,-591.51,0.00037197,30]
[367000606,1750611042611,-302.97667957,0.000372,120]
[367000607,1750611042621,-302.97667956,0.000372,120]
[367000608,1750611042630,-302.97667956,0.000372,120]
[367000609,1750611042640,-302.97667956,0.000372,120]
[367000610,1750611042650,-150.0,0.0003724,2]
[367000611,1750611042659,-218.44265038,0.00037254,2]
[367000612,1750611042668,-182.42876942,0.0003726,10]
[367000614,1750611042678,-169.11734191,0.0003726,14]
[367000615,1750611042687,-150.0,0.00037281,2]
[367000617,1750611042697,-1101.55384,0.00037288,30]
[367000619,1750611042707,-150.0,0.0003729,2]
[367000620,1750611042716,-150.0,0.00037306,2]
[367000621,1750611042725,-2660.84885605,0.00037314,36]
[367000622,1750611042736,-1000.0,0.00037323,7]
[367000623,1750611042744,-150.0,0.00037325,2]
[367000624,1750611042753,-150.0,0.00037336,2]
[367000626,1750611042761,-150.0,0.0003737,2]
[367000628,1750611042770,-150.0,0.00037377,2]
[367000632,1750611042779,-150.0,0.0003738,2]
[367000634,1750611042787,-150.0,0.00037386,2]
[367000637,1750611042795,-150.0,0.00037387,2]
[367000639,1750611042803,-283.51767351,0.00037395,15]
[367000640,1750611042811,-1500.0,0.000374,24]
[367000642,1750611042820,-798.25,0.0003741,2]
[367000643,1750611042828,-798.25,0.0003741,2]
[367000644,1750611042836,-150.0,0.00037443,2]
[367000645,1750611042845,-152.0,0.00037447,9]
[367000646,1750611042853,-591.51,0.00037471,30]
[367000647,1750611042862,-591.51,0.00037471,30]
[367000649,1750611042870,-150.0,0.00037478,2]
[367000651,1750611042879,-500.0,0.00037481,7]
[367000653,1750611042887,-150.0,0.00037482,2]
[367000654,1750611042895,-150.0,0.00037483,2]
[367000656,1750611042904,-255.0,0.00037485,120]
[367000658,1750611042912,-1101.55384,0.00037488,30]
[367000659,1750611042921,-150.0,0.00037489,2]
[367000660,1750611042929,-150.0,0.00037489,2]
[367000661,1750611042938,-150.0,0.00037492,2]
[367000662,1750611042946,-196.153856,0.000375,7]
[367000663,1750611042956,-196.153856,0.000375,7]
[367000664,1750611042965,-151.0,0.000375,7]
[367000665,1750611042975,-151.0,0.000375,7]
[367000666,1750611042985,-1000.0,0.000375,13]
[367000667,1750611042994,-150.0,0.00037502,2]
[367000668,1750611043004,-798.25,0.00037505,2]
[367000669,1750611043013,-151.0,0.00037521,7]
[367000670,1750611043021,-151.0,0.00037521,7]
[367000671,1750611043030,-151.0,0.00037521,7]
[367000672,1750611043040,-151.0,0.00037521,7]
[367000673,1750611043049,-151.0,0.00037521,7]
[367000674,1750611043058,-151.0,0.00037521,7]
[367000675,1750611043068,-151.0,0.00037521,7]
[367000676,1750611043079,-151.0,0.00037521,7]
[367000677,1750611043090,-151.0,0.00037521,7]
[367000678,1750611043099,-151.0,0.00037521,7]
[367000679,1750611043110,-151.0,0.00037521,7]
[367000680,1750611043120,-151.0,0.00037521,7]
[367000681,1750611043130,-151.0,0.00037521,7]
[367000682,1750611043140,-151.0,0.00037521,7]
[367000683,1750611043150,-151.0,0.00037521,7]
[367000684,1750611043160,-151.0,0.00037521,7]
[367000685,1750611043169,-151.0,0.00037521,7]
[367000686,1750611043180,-151.0,0.00037521,7]
[367000687,1750611043190,-151.0,0.00037521,7]
[367000688,1750611043199,-236.060514,0.00037521,7]
[367000689,1750611043210,-151.0,0.00037521,7]
[367000690,1750611043219,-151.0,0.00037521,7]
[367000691,1750611043228,-151.0,0.00037521,7]
[367000692,1750611043241,-151.0,0.00037521,7]
[367000693,1750611043251,-151.0,0.00037521,7]
[367000694,1750611043261,-151.0,0.00037521,7]
[367000695,1750611043271,-151.0,0.00037521,7]
[367000696,1750611043281,-151.0,0.00037521,7]
[367000697,1750611043290,-151.0,0.00037521,7]
[367000698,1750611043300,-151.0,0.00037521,7]
[367000699,1750611043309,-151.0,0.00037521,7]
[367000700,1750611043319,-279.580097,0.00037521,7]
[367000701,1750611043329,-150.0,0.00037521,3]
[367000702,1750611043340,-261.11100396,0.00037521,3]
[367000703,1750611043350,-165.43633088,0.00037522,2]
[367000704,1750611043360,-2126.0,0.00037522,120]
[367000705,1750611043370,-209.7,0.00037522,30]
[367000706,1750611043508,-571.0,0.00037522,60]
[367000707,1750611043519,-575.0,0.00037522,60]
[367000708,1750611043529,-571.0,0.00037522,60]
[367000709,1750611043538,-571.0,0.00037522,60]
[367000710,1750611043548,-571.0,0.00037522,60]
[367000711,1750611043559,-154.0,0.00037522,60]
[367000712,1750611043569,-169.048,0.00037522,2]
[367000713,1750611043580,-375.4907999,0.00037522,2]
[367000714,1750611043589,-150.0,0.00037522,2]
[367000715,1750611043601,-621480.0,0.00037522,60]
[367000716,1750611043610,-151.0,0.00037522,7]
[367000717,1750611043620,-344.67,0.00037524,30]
[367000718,1750611043630,-1165.77,0.00037524,30]
[367000719,1750611043640,-1165.77,0.00037524,30]
[367000720,1750611043650,-196.153856,0.00037525,7]
[367000721,1750611043660,-196.153856,0.00037525,7]
[367000722,1750611043670,-196.153856,0.00037525,7]
[367000723,1750611043680,-196.153856,0.00037525,7]
[367000724,1750611043690,-196.153856,0.00037525,7]
[367000725,1750611043700,-196.153856,0.00037525,7]
[367000726,1750611043710,-196.153856,0.00037525,7]
[367000727,1750611043721,-196.153856,0.00037525,7]
[367000728,1750611043732,-196.153856,0.00037525,7]
[367000729,1750611043742,-196.153856,0.00037525,7]
[367000730,1750611043752,-196.153856,0.00037525,7]
[367000731,1750611043763,-196.153856,0.00037525,7]
[367000732,1750611043773,-151.0,0.00037525,7]
[367000733,1750611043784,-151.0,0.00037525,7]
[367000734,1750611043794,-151.0,0.00037525,7]
[367000735,1750611043804,-151.0,0.00037525,7]
[367000736,1750611043813,-151.0,0.00037525,7]
[367000737,1750611043823,-151.0,0.00037525,7]
[367000738,1750611043834,-151.0,0.00037525,7]
[367000739,1750611043844,-151.0,0.00037525,7]
[367000740,1750611043854,-151.0,0.00037525,7]
[367000741,1750611043864,-151.0,0.00037525,7]
[367000742,1750611043874,-263.735262,0.00037525,7]
[367000743,1750611043885,-500.0,0.00037533,60]
[367000744,1750611043895,-150.0,0.00037534,2]
[367000745,1750611043906,-150.0,0.00037543,2]
[367000746,1750611043916,-150.0,0.00037544,2]
[367000747,1750611043926,-150.0,0.00037545,2]
[367000748,1750611043935,-150.0,0.0003755,2]
[367000749,1750611043945,-150.0,0.00037553,2]
[367000750,1750611043955,-150.0,0.00037555,2]
[367000751,1750611043965,-4222.50454798,0.00037559,2]
[367000752,1750611043975,-150.0,0.00037561,2]
[367000753,1750611043985,-150.0,0.00037576,2]
[367000754,1750611043995,-150.0,0.0003758,2]
[367000755,1750611044005,-1000.0,0.00037582,7]
[367000756,1750611044015,-150.0,0.00037583,2]
[367000757,1750611044025,-150.0,0.00037585,2]
[367000758,1750611044035,-150.0,0.00037587,2]
[367000759,1750611044045,-608.63684678,0.0003759,2]
[367000760,1750611044055,-1400.0,0.000376,13]
[367000761,1750611044065,-150.0,0.00037611,2]
[367000762,1750611044076,-413.84,0.00037618,120]
[367000763,1750611044086,-182.42876942,0.0003764,10]
[367000764,1750611044097,-150.0,0.00037641,2]
[367000765,1750611044107,-200.0,0.00037659,10]
[367000766,1750611044117,-150.0,0.0003766,2]
[367000767,1750611044127,-150.0,0.00037685,2]
[367000768,1750611044138,-150.0,0.00037687,2]
[367000769,1750611044148,-1101.55384,0.00037688,30]
[367000770,1750611044158,-150.0,0.00037694,2]
[367000771,1750611044168,-150.0,0.00037694,2]
[367000772,1750611044179,-1700.0,0.000377,13]
[367000773,1750611044189,-150.0,0.00037704,2]
[367000774,1750611044200,-1000.0,0.00037717,7]
[367000775,1750611044210,-150.0,0.00037726,7]
[367000776,1750611044220,-4921.32426,0.0003774,2]
[367000777,1750611044230,-591.51,0.00037745,30]
[367000778,1750611044241,-591.51,0.00037745,30]
[367000779,1750611044251,-150.0,0.00037755,2]
[367000780,1750611044261,-2660.84885605,0.00037762,37]
[367000781,1750611044271,-170.97,0.00037774,2]
[367000782,1750611044280,-163.6,0.00037776,2]
[367000783,1750611044290,-163.6,0.00037776,2]
[367000784,1750611044300,-344.67,0.00037776,2]
[367000785,1750611044310,-150.0,0.00037786,2]
[367000786,1750611044319,-4609.0,0.00037799,3]
[367000787,1750611044329,-300.0,0.000378,13]
[367000788,1750611044338,-150.0,0.00037803,2]
[367000789,1750611044348,-150.0,0.00037804,2]
[367000790,1750611044358,-150.0,0.00037807,2]
[367000791,1750611044367,-150.0,0.00037826,2]
[367000792,1750611044377,-150.0,0.0003783,2]
[367000793,1750611044386,-150.0,0.00037845,2]
[367000794,1750611044396,-150.0,0.00037845,2]
[367000795,1750611044406,-150.0,0.00037855,2]
[367000796,1750611044418,-300.0,0.00037862,7]
[367000797,1750611044427,-1101.55384,0.00037888,30]
[367000798,1750611044439,-151.0,0.00037899,13]
[367000799,1750611044449,-151.0,0.00037899,13]
[367000800,1750611044461,-151.0,0.00037899,13]
[367000801,1750611044470,-302.23931329,0.00037899,13]
[367000802,1750611044480,-156.587,0.00037899,13]
[367000803,1750611044494,-162.380719,0.00037899,13]
[367000804,1750611044504,-151.0,0.00037899,13]
[367000805,1750611044514,-168.3888056,0.00037899,13]
[367000806,1750611044526,-151.0,0.00037899,13]
[367000807,1750611044537,-174.61919141,0.00037899,13]
[367000808,1750611044547,-188.5163345,0.00037899,13]
[367000809,1750611044556,-181.08010149,0.00037899,13]
[367000810,1750611044567,-187.78006525,0.00037899,13]
[367000811,1750611044577,-194.72792766,0.00037899,13]
[367000812,1750611044587,-201.93286099,0.00037899,13]
[367000813,1750611044597,-209.40437684,0.00037899,13]
[367000814,1750611044607,-217.15233878,0.00037899,13]
[367000815,1750611044617,-225.18697532,0.00037899,13]
[367000816,1750611044627,-233.51889341,0.00037899,13]
[367000817,1750611044637,-444.9196833,0.00037899,13]
[367000818,1750611044647,-242.15909246,0.00037899,13]
[367000819,1750611044656,-500.0,0.00037899,13]
[367000820,1750611044667,-251.11897888,0.00037899,13]
[367000821,1750611044676,-500.0,0.00037899,13]
[367000822,1750611044688,-260.4103811,0.00037899,13]
[367000823,1750611044699,-500.0,0.00037899,13]
[367000824,1750611044710,-270.0455652,0.00037899,13]
[367000825,1750611044719,-500.0,0.00037899,13]
[367000826,1750611044730,-280.03725112,0.00037899,13]
[367000827,1750611044741,-290.39862941,0.00037899,13]
[367000828,1750611044750,-301.1433787,0.00037899,13]
[367000829,1750611044760,-500.0,0.00037899,13]
[367000830,1750611044770,-500.0,0.00037899,13]
[367000831,1750611044779,-207.4,0.00037899,13]
[367000832,1750611044790,-500.0,0.00037899,13]
[367000833,1750611044800,-215.0738,0.00037899,13]
[367000834,1750611044812,-500.0,0.00037899,13]
[367000835,1750611044823,-223.0315306,0.00037899,13]
[367000836,1750611044836,-500.0,0.00037899,13]
[367000837,1750611044849,-231.28369723,0.00037899,13]
[367000838,1750611044859,-500.0,0.00037899,13]
[367000839,1750611044869,-239.84119403,0.00037899,13]
[367000840,1750611044879,-500.0,0.00037899,13]
[367000841,1750611044889,-248.71531821,0.00037899,13]
[367000842,1750611044899,-500.0,0.00037899,13]
[367000843,1750611044908,-500.0,0.00037899,13]
[367000844,1750611044921,-257.91778498,0.00037899,13]
[367000845,1750611044934,-267.46074303,0.00037899,13]
[367000846,1750611044948,-482.10773108,0.00037899,13]
[367000847,1750611044958,-277.35679052,0.00037899,13]
[367000848,1750611044968,-287.61899177,0.00037899,13]
[367000849,1750611044978,-298.26089446,0.00037899,13]
[367000850,1750611044988,-309.29654756,0.00037899,13]
[367000851,1750611044998,-320.74051982,0.00037899,13]
[367000852,1750611045009,-332.60791905,0.00037899,13]
[367000853,1750611045018,-344.91441206,0.00037899,13]
[367000854,1750611045029,-357.6762453,0.00037899,13]
[367000855,1750611045039,-370.91026638,0.00037899,13]
[367000856,1750611045049,-384.63394623,0.00037899,13]
[367000857,1750611045059,-398.86540225,0.00037899,13]
[367000858,1750611045068,-151.0,0.00037899,13]
[367000859,1750611045079,-300.0,0.000379,13]
[367000860,1750611045088,-165.7,0.000379,37]
[367000861,1750611045098,-350.0,0.00037926,2]
[367000862,1750611045108,-150.0,0.00037934,2]
[367000863,1750611045119,-150.0,0.00037961,2]
[367000864,1750611045128,-150.0,0.00037962,2]
[367000865,1750611045138,-17444.0683976,0.00037963,2]
[367000866,1750611045148,-478.41154236,0.00037963,2]
[367000867,1750611045158,-1170.8545862,0.00037963,2]
[367000868,1750611045168,-890.74383586,0.00037963,2]
[367000869,1750611045178,-358.71396057,0.00037963,2]
[367000870,1750611045188,-151.0,0.00037964,7]
[367000871,1750611045198,-151.0,0.00037964,7]
[367000872,1750611045208,-222.731901,0.00037964,7]
[367000873,1750611045217,-151.0,0.00037964,7]
[367000874,1750611045227,-151.08522095,0.00037964,2]
[367000875,1750611045238,-244.6467955,0.00037964,2]
[367000876,1750611045248,-1191.61363176,0.00037964,7]
[367000877,1750611045258,-1000.0,0.00037964,2]
[367000878,1750611045269,-1000.0,0.00037964,2]
[367000879,1750611045279,-1000.0,0.00037964,2]
[367000880,1750611045289,-1000.0,0.00037964,2]
[367000881,1750611045298,-1000.0,0.00037964,2]
[367000882,1750611045308,-1000.0,0.00037964,2]
[367000883,1750611045319,-1000.0,0.00037964,2]
[367000884,1750611045329,-1000.0,0.00037964,2]
[367000885,1750611045339,-1000.0,0.00037964,2]
[367000886,1750611045348,-1000.0,0.00037964,2]
[367000887,1750611045358,-10956.5355671,0.00037964,2]
[367000888,1750611045368,-4921.32426,0.00037964,2]
[367000889,1750611045379,-4921.32426,0.00037964,2]
[367000890,1750611045390,-19683.1620203,0.00037964,2]
[367000891,1750611045400,-827.2744648,0.00037964,2]
[367000892,1750611045410,-400.0,0.0003797,2]
[367000893,1750611045423,-400.0,0.0003797,2]
[367000894,1750611045433,-270.55552608,0.00037973,7]
[367000895,1750611045442,-207.22923847,0.00037973,7]
[367000896,1750611045452,-204.46871074,0.00037973,7]
[367000897,1750611045463,-150.0,0.00037973,7]
[367000898,1750611045473,-244.82138103,0.00037973,7]
[367000899,1750611045483,-4921.32427,0.0003799,2]
[367000900,1750611045497,-179.30103,0.0003799,7]
[367000901,1750611045508,-179.30103,0.0003799,7]
[367000902,1750611045518,-151.726846,0.0003799,7]
[367000903,1750611045528,-151.0,0.0003799,7]
[367000904,1750611045539,-1113.13572044,0.00037999,30]
[367000905,1750611045549,-1321.41118099,0.00037999,30]
[367000906,1750611045559,-15000.0,0.00038,30]
[367000907,1750611045570,-80000.0,0.00038,17]
[367000908,1750611045579,-1001.0,0.00038,4]
[367000909,1750611045590,-1001.18001726,0.00038,5]
[367000910,1750611045601,-2000.0,0.00038,2]
[367000911,1750611045611,-500.14,0.00038,7]
[367000912,1750611045621,-1000.0,0.00038,2]
[367000913,1750611045631,-3000.00971355,0.00038,4]
[367000914,1750611045641,-484.17918541,0.00038,30]
[367000915,1750611045651,-375.98420768,0.00038,120]
[367000916,1750611045661,-2783.08292853,0.00038,30]
[367000917,1750611045671,-1000.0,0.00038,120]
[367000918,1750611045681,-413.965498,0.00038,2]
[367000920,1750611045690,-413.965498,0.00038,2]
[367000921,1750611045700,-368.274676,0.00038,7]
[367000922,1750611045710,-368.274676,0.00038,7]
[367000924,1750611045720,-834.42866044,0.00038,3]
[367000925,1750611045730,-834.42866044,0.00038,30]
[367000926,1750611045744,-834.42866044,0.00038,7]
[367000927,1750611045754,-184.31,0.00038012,2]
[367000928,1750611045764,-591.51,0.00038019,30]
[367000929,1750611045774,-591.51,0.00038019,30]
[367000930,1750611045784,-182.42876942,0.0003802,11]
[367000931,1750611045794,-500.0,0.00038081,60]
[367000932,1750611045804,-1700.0,0.00038081,60]
[367000933,1750611045814,-600.0,0.00038081,60]
[367000934,1750611045823,-1101.55384,0.00038088,30]
[367000935,1750611045834,-283.51767351,0.000381,15]
[367000936,1750611045845,-150.0,0.00038159,120]
[367000938,1750611046182,-2660.84885605,0.0003821,38]
[367000939,1750611046192,-4921.32426,0.0003824,2]
[367000940,1750611046202,-4222.50454798,0.00038256,2]
[367000941,1750611046213,-164.04994014,0.00038256,7]
[367000942,1750611046223,-160.07156828,0.00038256,2]
[367000943,1750611046233,-17558.97712966,0.00038256,2]
[367000944,1750611046244,-292.032886,0.00038256,2]
[367000945,1750611046254,-810.87643171,0.00038282,20]
[367000946,1750611046264,-1101.55384,0.00038288,30]
[367000947,1750611046274,-591.51,0.00038293,30]
[367000948,1750611046284,-591.51,0.00038293,30]
[367000949,1750611046294,-154.52,0.000383,31]
[367000950,1750611046304,-179.30103,0.00038336,7]
[367000951,1750611046314,-179.30103,0.00038336,7]
[367000952,1750611046323,-151.0,0.00038336,7]
[367000953,1750611046334,-151.0,0.00038346,7]
[367000954,1750611046344,-151.0,0.00038346,7]
[367000955,1750611046354,-151.0,0.00038346,7]
[367000956,1750611046364,-288.567768,0.00038346,7]
[367000957,1750611046374,-158.051201,0.00038346,7]
[367000958,1750611046384,-2197.098882,0.00038346,7]
[367000959,1750611046394,-2197.098882,0.00038346,7]
[367000960,1750611046405,-151.0,0.00038346,7]
[367000961,1750611046423,-223.960344,0.00038346,7]
[367000962,1750611046440,-174.41917,0.00038346,7]
[367000963,1750611046449,-174.41917,0.00038346,7]
[367000964,1750611046459,-269.003535,0.00038346,7]
[367000965,1750611046469,-269.003535,0.00038346,7]
[367000966,1750611046478,-151.0,0.00038346,7]
[367000967,1750611046489,-151.0,0.00038346,7]
[367000968,1750611046499,-835.648758,0.00038346,7]
[367000969,1750611046509,-835.648758,0.00038346,7]
[367000970,1750611046520,-151.0,0.00038346,7]
[367000971,1750611046530,-225.605478,0.00038346,7]
[367000972,1750611046539,-151.0,0.00038346,7]
[367000973,1750611046549,-151.0,0.00038346,7]
[367000974,1750611046559,-151.0,0.00038346,7]
[367000975,1750611046569,-151.0,0.00038346,7]
[367000976,1750611046579,-151.0,0.00038346,7]
[367000977,1750611046589,-280.20117,0.00038346,7]
[367000978,1750611046598,-280.20117,0.00038346,7]
[367000979,1750611046608,-300.0,0.00038355,10]
[367000980,1750611046618,-490.0,0.00038356,120]
[367000981,1750611046628,-490.0,0.00038356,120]
[367000982,1750611046637,-490.0,0.00038356,120]
[367000983,1750611046647,-490.0,0.00038356,120]
[367000984,1750611046656,-550.19985758,0.00038356,120]
[367000985,1750611046667,-490.0,0.00038356,120]
[367000986,1750611046676,-490.0,0.00038356,120]
[367000987,1750611046685,-490.0,0.00038356,120]
[367000988,1750611046695,-490.0,0.00038356,120]
[367000989,1750611046705,-575.51,0.00038356,120]
[367000990,1750611046715,-490.0,0.00038356,120]
[367000991,1750611046724,-490.0,0.00038356,120]
[367000992,1750611046734,-490.0,0.00038356,120]
[367000993,1750611046747,-490.0,0.00038356,120]
[367000995,1750611046757,-490.0,0.00038356,120]
[367000997,1750611046766,-490.0,0.00038356,120]
[367000998,1750611046775,-528.3,0.00038356,120]
[367001000,1750611046784,-490.0,0.00038356,120]
[367001003,1750611046794,-490.0,0.00038356,120]
[367001005,1750611046803,-1354.84,0.00038356,120]
[367001007,1750611046812,-490.0,0.00038356,120]
[367001009,1750611046822,-490.0,0.00038356,120]
[367001010,1750611046832,-490.0,0.00038356,120]
[367001011,1750611046841,-490.0,0.00038356,120]
[367001012,1750611046851,-490.0,0.00038356,120]
[367001013,1750611046861,-490.0,0.00038356,120]
[367001014,1750611046871,-490.0,0.00038356,120]
[367001015,1750611046880,-490.0,0.00038356,120]
[367001016,1750611046890,-490.0,0.00038356,120]
[367001017,1750611046899,-656.12,0.00038356,120]
[367001018,1750611046908,-490.0,0.00038356,120]
[367001020,1750611046918,-490.0,0.00038356,120]
[367001021,1750611046928,-490.0,0.00038356,120]
[367001022,1750611046937,-490.0,0.00038356,120]
[367001023,1750611046947,-490.0,0.00038356,120]
[367001025,1750611046956,-643.09,0.00038356,120]
[367001027,1750611046965,-493.36185127,0.00038356,120]
[367001029,1750611046975,-490.0,0.00038356,120]
[367001031,1750611046984,-490.0,0.00038356,120]
[367001033,1750611046998,-490.0,0.00038356,120]
[367001035,1750611047007,-490.0,0.00038356,120]
[367001037,1750611047017,-490.0,0.00038356,120]
[367001039,1750611047027,-490.0,0.00038356,120]
[367001041,1750611047036,-490.0,0.00038356,120]
[367001043,1750611047045,-490.0,0.00038356,120]
[367001045,1750611047055,-595.98099445,0.00038356,120]
[367001047,1750611047064,-490.0,0.00038356,120]
[367001050,1750611047077,-490.0,0.00038356,120]
[367001052,1750611047086,-490.0,0.00038356,120]
[367001053,1750611047096,-492.8349022,0.00038356,120]
[367001055,1750611047106,-1087.42,0.00038356,120]
[367001057,1750611047115,-1054.27,0.00038356,120]
[367001059,1750611047125,-490.0,0.00038356,120]
[367001061,1750611047134,-490.0,0.00038356,120]
[367001063,1750611047143,-490.0,0.00038356,120]
[367001065,1750611047153,-517.24,0.00038356,120]
[367001067,1750611047163,-490.0,0.00038356,120]
[367001069,1750611047172,-490.0,0.00038356,120]
[367001071,1750611047182,-490.0,0.00038356,120]
[367001073,1750611047192,-967.45,0.00038356,120]
[367001075,1750611047201,-490.0,0.00038356,120]
[367001077,1750611047211,-492.41598265,0.00038356,120]
[367001079,1750611047220,-490.0,0.00038356,120]
[367001081,1750611047230,-440.86,0.00038356,120]
[367001083,1750611047242,-490.0,0.00038356,120]
[367001085,1750611047251,-642.06,0.00038356,120]
[367001087,1750611047261,-490.0,0.00038356,120]
[367001089,1750611047271,-490.0,0.00038356,120]
[367001091,1750611047281,-490.0,0.00038356,120]
[367001093,1750611047291,-490.0,0.00038356,120]
[367001095,1750611047301,-490.0,0.00038356,120]
[367001097,1750611047310,-490.0,0.00038356,30]
[367001099,1750611047320,-490.0,0.00038356,120]
[367001101,1750611047331,-490.0,0.00038356,120]
[367001103,1750611047340,-859.98,0.00038356,120]
[367001105,1750611047350,-1581.07,0.00038356,120]
[367001107,1750611047359,-490.0,0.00038356,120]
[367001109,1750611047368,-1613.51,0.00038356,120]
[367001111,1750611047377,-490.0,0.00038356,120]
[367001114,1750611047387,-490.0,0.00038356,120]
[367001116,1750611047396,-490.0,0.00038356,120]
[367001118,1750611047405,-683.23,0.00038356,120]
[367001120,1750611047416,-490.0,0.00038356,120]
[367001121,1750611047426,-490.0,0.00038356,120]
[367001124,1750611047436,-874.6,0.00038356,120]
[367001126,1750611047445,-1327.67,0.00038356,120]
[367001128,1750611047457,-514.76,0.00038356,120]